[Event "Titled Tuesday Blitz March 07 Late 2023"]
[White "Barash, Anton"]
[Black "Karttunen, Mika"]
[WhiteFideId "30935229"]
[BlackFideId "502081"]
[WhiteElo "2312"]
[BlackElo "2396"]
[Result "1-0"]
[Round "09"]
[TimeControl "180+2"]
[Date "2023.03.07"]
[WhiteClock "0:00:07"]
[BlackClock "0:00:07"]

1. e4 {[%clk 0:02:53]}  Nf6 {[%clk 0:02:58]} 2. Nc3 {[%clk 0:02:53]}  d5 {[%clk 0:02:58]} 3. exd5 {[%clk 0:02:54]}  Nxd5 {[%clk 0:02:58]} 4. Bc4 {[%clk 0:02:54]}  c6 {[%clk 0:02:57]} 5. Qf3 {[%clk 0:02:53]}  Nf6 {[%clk 0:02:56]} 6. Qg3 {[%clk 0:02:47]}  Bg4 {[%clk 0:02:46]} 7. Nf3 {[%clk 0:02:44]}  Nbd7 {[%clk 0:02:36]} 8. d3 {[%clk 0:02:36]}  Bxf3 {[%clk 0:02:35]} 9. gxf3 {[%clk 0:02:31]}  Nb6 {[%clk 0:02:29]} 10. Bb3 {[%clk 0:02:29]}  e6 {[%clk 0:02:26]} 11. Bg5 {[%clk 0:02:28]}  Be7 {[%clk 0:02:21]} 12. O-O-O {[%clk 0:02:26]}  a5 {[%clk 0:02:17]} 13. a4 {[%clk 0:02:11]}  Nbd5 {[%clk 0:02:16]} 14. Nxd5 {[%clk 0:02:09]}  cxd5 {[%clk 0:02:15]} 15. Rhg1 {[%clk 0:01:55]}  Rc8 {[%clk 0:01:49]} 16. Kb1 {[%clk 0:01:42]}  h6 {[%clk 0:01:03]} 17. Bd2 {[%clk 0:01:42]}  g6 {[%clk 0:01:01]} 18. Rde1 {[%clk 0:01:40]}  Rc6 {[%clk 0:00:46]} 19. Qe5 {[%clk 0:01:21]}  Bd6 {[%clk 0:00:39]} 20. Qe2 {[%clk 0:01:17]}  Bxh2 {[%clk 0:00:38]} 21. Rg2 {[%clk 0:01:16]}  Bc7 {[%clk 0:00:37]} 22. f4 {[%clk 0:01:05]}  Kd7 {[%clk 0:00:37]} 23. Qf3 {[%clk 0:00:41]}  Kc8 {[%clk 0:00:36]} 24. Bc3 {[%clk 0:00:31]}  d4 {[%clk 0:00:28]} 25. Bd2 {[%clk 0:00:32]}  Kb8 {[%clk 0:00:28]} 26. Re2 {[%clk 0:00:30]}  Bd6 {[%clk 0:00:23]} 27. Rg1 {[%clk 0:00:23]}  Bc7 {[%clk 0:00:23]} 28. Rge1 {[%clk 0:00:23]}  Qd7 {[%clk 0:00:22]} 29. Qg2 {[%clk 0:00:21]}  h5 {[%clk 0:00:22]} 30. Qg5 {[%clk 0:00:21]}  Nd5 {[%clk 0:00:19]} 31. Bxd5 {[%clk 0:00:20]}  Qxd5 {[%clk 0:00:19]} 32. Qxd5 {[%clk 0:00:16]}  exd5 {[%clk 0:00:20]} 33. Re7 {[%clk 0:00:17]}  Rf6 {[%clk 0:00:19]} 34. Rd7 {[%clk 0:00:13]}  Kc8 {[%clk 0:00:15]} 35. Ree7 {[%clk 0:00:11]}  Bd8 {[%clk 0:00:15]} 36. Rxf7 {[%clk 0:00:06]}  Rxf7 {[%clk 0:00:15]} 37. Rxf7 {[%clk 0:00:07]}  h4 {[%clk 0:00:16]} 38. f5 {[%clk 0:00:04]}  h3 {[%clk 0:00:15]} 39. Bf4 {[%clk 0:00:04]}  h2 {[%clk 0:00:13]} 40. Bxh2 {[%clk 0:00:05]}  Rxh2 {[%clk 0:00:13]} 41. fxg6 {[%clk 0:00:05]}  Rg2 {[%clk 0:00:14]} 42. g7 {[%clk 0:00:06]}  Rg1+ {[%clk 0:00:11]} 43. Ka2 {[%clk 0:00:06]}  b6 {[%clk 0:00:11]} 44. f4 {[%clk 0:00:06]}  Rg2 {[%clk 0:00:08]} 45. f5 {[%clk 0:00:06]}  Rg3 {[%clk 0:00:05]} 46. f6 {[%clk 0:00:06]}  Bxf6 {[%clk 0:00:05]} 47. Rxf6 {[%clk 0:00:05]}  Rxg7 {[%clk 0:00:05]} 48. Rxb6 {[%clk 0:00:06]}  Rc7 {[%clk 0:00:05]} 49. Kb3 {[%clk 0:00:05]}  Rc5 {[%clk 0:00:05]} 50. Rb5 {[%clk 0:00:05]}  Rxb5+ {[%clk 0:00:05]} 51. axb5 {[%clk 0:00:05]}  Kc7 {[%clk 0:00:06]} 52. Ka4 {[%clk 0:00:06]}  Kb6 {[%clk 0:00:06]} 53. b4 {[%clk 0:00:06]}  axb4 {[%clk 0:00:06]} 54. Kxb4 {[%clk 0:00:07]}  Kb7 {[%clk 0:00:07]} 55. Kc5 {[%clk 0:00:07]} 1-0


[Site "https://www.chess.com"]

[Event "Titled Tuesday Blitz March 07 Late 2023"]
[White "Sarkar, Justin"]
[Black "Estrada Nieto, Julian"]
[WhiteFideId "2010011"]
[BlackFideId "5101018"]
[WhiteElo "2189"]
[BlackElo "2176"]
[Result "1/2-1/2"]
[Round "09"]
[TimeControl "180+2"]
[Date "2023.03.07"]
[WhiteClock "0:00:01"]
[BlackClock "0:00:14"]

1. e4 {[%clk 0:02:47]}  e5 {[%clk 0:02:02]} 2. f4 {[%clk 0:02:42]}  d5 {[%clk 0:02:01]} 3. Nf3 {[%clk 0:02:39]}  exf4 {[%clk 0:01:59]} 4. exd5 {[%clk 0:02:36]}  Bd6 {[%clk 0:01:59]} 5. d4 {[%clk 0:02:29]}  Nf6 {[%clk 0:01:59]} 6. Bb5+ {[%clk 0:02:21]}  c6 {[%clk 0:01:58]} 7. dxc6 {[%clk 0:02:19]}  bxc6 {[%clk 0:01:58]} 8. Bc4 {[%clk 0:02:09]}  O-O {[%clk 0:01:57]} 9. O-O {[%clk 0:02:08]}  Nbd7 {[%clk 0:01:44]} 10. Nc3 {[%clk 0:01:48]}  Nb6 {[%clk 0:01:40]} 11. Bd3 {[%clk 0:01:42]}  Nbd5 {[%clk 0:01:33]} 12. Nxd5 {[%clk 0:01:37]}  Nxd5 {[%clk 0:01:21]} 13. Re1 {[%clk 0:01:15]}  Bg4 {[%clk 0:01:17]} 14. c4 {[%clk 0:01:05]}  Nb4 {[%clk 0:01:17]} 15. Be4 {[%clk 0:00:52]}  f5 {[%clk 0:01:00]} 16. Bb1 {[%clk 0:00:50]}  c5 {[%clk 0:01:00]} 17. d5 {[%clk 0:00:41]}  a5 {[%clk 0:00:42]} 18. a3 {[%clk 0:00:37]}  Na6 {[%clk 0:00:41]} 19. Bd3 {[%clk 0:00:34]}  Rb8 {[%clk 0:00:38]} 20. Rb1 {[%clk 0:00:26]}  Re8 {[%clk 0:00:24]} 21. Rxe8+ {[%clk 0:00:21]}  Qxe8 {[%clk 0:00:24]} 22. Bd2 {[%clk 0:00:19]}  a4 {[%clk 0:00:22]} 23. h3 {[%clk 0:00:19]}  Bxf3 {[%clk 0:00:20]} 24. Qxf3 {[%clk 0:00:18]}  Qe5 {[%clk 0:00:20]} 25. Bc3 {[%clk 0:00:15]}  Qe3+ {[%clk 0:00:15]} 26. Qxe3 {[%clk 0:00:15]}  fxe3 {[%clk 0:00:16]} 27. Bxf5 {[%clk 0:00:14]}  Nc7 {[%clk 0:00:14]} 28. Re1 {[%clk 0:00:13]}  Bf4 {[%clk 0:00:12]} 29. g3 {[%clk 0:00:12]}  Bg5 {[%clk 0:00:11]} 30. Be5 {[%clk 0:00:09]}  Rb7 {[%clk 0:00:11]} 31. d6 {[%clk 0:00:07]}  Ne8 {[%clk 0:00:07]} 32. Be6+ {[%clk 0:00:06]}  Kh8 {[%clk 0:00:06]} 33. d7 {[%clk 0:00:06]}  Nc7 {[%clk 0:00:05]} 34. Bxc7 {[%clk 0:00:05]}  Rxc7 {[%clk 0:00:05]} 35. Rf1 {[%clk 0:00:04]}  h6 {[%clk 0:00:03]} 36. Rf8+ {[%clk 0:00:03]}  Kh7 {[%clk 0:00:04]} 37. d8=Q {[%clk 0:00:02]}  Bxd8 {[%clk 0:00:04]} 38. Rxd8 {[%clk 0:00:03]}  Rb7 {[%clk 0:00:05]} 39. Bf5+ {[%clk 0:00:02]}  g6 {[%clk 0:00:04]} 40. Rd7+ {[%clk 0:00:02]}  Rxd7 {[%clk 0:00:04]} 41. Bxd7 {[%clk 0:00:03]}  e2 {[%clk 0:00:05]} 42. Kf2 {[%clk 0:00:03]}  Kg7 {[%clk 0:00:06]} 43. Kxe2 {[%clk 0:00:02]}  Kf6 {[%clk 0:00:07]} 44. Bxa4 {[%clk 0:00:03]}  Ke5 {[%clk 0:00:07]} 45. Bb5 {[%clk 0:00:02]}  Kd4 {[%clk 0:00:08]} 46. a4 {[%clk 0:00:02]}  g5 {[%clk 0:00:09]} 47. a5 {[%clk 0:00:01]}  h5 {[%clk 0:00:10]} 48. h4 {[%clk 0:00:01]}  g4 {[%clk 0:00:10]} 49. a6 {[%clk 0:00:01]}  Ke5 {[%clk 0:00:10]} 50. a7 {[%clk 0:00:01]}  Kd6 {[%clk 0:00:11]} 51. a8=Q {[%clk 0:00:01]}  Kc7 {[%clk 0:00:12]} 52. Qd5 {[%clk 0:00:01]}  Kb6 {[%clk 0:00:13]} 53. Qd6+ {[%clk 0:00:01]}  Ka5 {[%clk 0:00:14]} 54. Qxc5 {[%clk 0:00:01]} 1/2-1/2


[Site "https://www.chess.com"]

[Event "Titled Tuesday Blitz March 07 Late 2023"]
[White "Vargas Rodriguez, Wilver"]
[Black "Kraus, Tomas"]
[WhiteFideId "3509672"]
[BlackFideId "331708"]
[WhiteElo "2238"]
[BlackElo "2389"]
[Result "0-1"]
[Round "09"]
[TimeControl "180+2"]
[Date "2023.03.07"]
[WhiteClock "0:00:05"]
[BlackClock "0:00:58"]

1. e4 {[%clk 0:03:00]}  c5 {[%clk 0:02:53]} 2. Nf3 {[%clk 0:03:00]}  e6 {[%clk 0:02:54]} 3. d4 {[%clk 0:02:48]}  cxd4 {[%clk 0:02:55]} 4. Nxd4 {[%clk 0:02:48]}  Nc6 {[%clk 0:02:55]} 5. Nc3 {[%clk 0:02:47]}  Qc7 {[%clk 0:02:55]} 6. g3 {[%clk 0:02:40]}  a6 {[%clk 0:02:55]} 7. Bg2 {[%clk 0:02:39]}  Nf6 {[%clk 0:02:55]} 8. O-O {[%clk 0:02:35]}  Be7 {[%clk 0:02:52]} 9. Nxc6 {[%clk 0:02:35]}  dxc6 {[%clk 0:02:50]} 10. a4 {[%clk 0:02:24]}  e5 {[%clk 0:02:39]} 11. h3 {[%clk 0:02:14]}  Be6 {[%clk 0:02:38]} 12. Be3 {[%clk 0:02:11]}  Bc4 {[%clk 0:02:32]} 13. Re1 {[%clk 0:02:10]}  Rd8 {[%clk 0:02:31]} 14. Qc1 {[%clk 0:02:06]}  b6 {[%clk 0:02:26]} 15. Rd1 {[%clk 0:01:42]}  O-O {[%clk 0:02:25]} 16. b3 {[%clk 0:01:35]}  Be6 {[%clk 0:02:23]} 17. Qb2 {[%clk 0:01:33]}  a5 {[%clk 0:02:07]} 18. Ne2 {[%clk 0:01:11]}  Nd7 {[%clk 0:02:00]} 19. c3 {[%clk 0:01:00]}  Bc5 {[%clk 0:01:59]} 20. Bxc5 {[%clk 0:00:26]}  Nxc5 {[%clk 0:01:59]} 21. c4 {[%clk 0:00:27]}  f6 {[%clk 0:01:46]} 22. Qc3 {[%clk 0:00:18]}  Qf7 {[%clk 0:01:36]} 23. Kh2 {[%clk 0:00:17]}  Qh5 {[%clk 0:01:35]} 24. g4 {[%clk 0:00:15]}  Bxg4 {[%clk 0:01:31]} 25. Ng3 {[%clk 0:00:15]}  Qh6 {[%clk 0:01:31]} 26. f3 {[%clk 0:00:13]}  Be6 {[%clk 0:01:25]} 27. Qc1 {[%clk 0:00:12]}  Qxc1 {[%clk 0:01:22]} 28. Raxc1 {[%clk 0:00:10]}  Nxb3 {[%clk 0:01:22]} 29. Rxd8 {[%clk 0:00:10]}  Rxd8 {[%clk 0:01:05]} 30. Rc3 {[%clk 0:00:09]}  Nc5 {[%clk 0:01:04]} 31. Nf5 {[%clk 0:00:10]}  Bxf5 {[%clk 0:01:03]} 32. exf5 {[%clk 0:00:11]}  Nxa4 {[%clk 0:01:02]} 33. Rb3 {[%clk 0:00:09]}  Rd2 {[%clk 0:01:02]} 34. Kg3 {[%clk 0:00:08]}  Rb2 {[%clk 0:01:02]} 35. Rd3 {[%clk 0:00:07]}  Nc5 {[%clk 0:00:59]} 36. Rd6 {[%clk 0:00:06]}  a4 {[%clk 0:00:58]} 37. Rxc6 {[%clk 0:00:04]}  a3 {[%clk 0:00:58]} 38. f4 {[%clk 0:00:05]}  e4 {[%clk 0:00:58]} 0-1


[Site "https://www.chess.com"]

[Event "Titled Tuesday Blitz March 07 Late 2023"]
[White "Senft, Sean"]
[Black "Curtis, John"]
[WhiteFideId "2044960"]
[BlackFideId "3200256"]
[WhiteElo "1989"]
[BlackElo "2203"]
[Result "0-1"]
[Round "09"]
[TimeControl "180+2"]
[Date "2023.03.07"]
[WhiteClock "0:02:55"]
[BlackClock "0:02:14"]

1. e4 {[%clk 0:03:00]}  e6 {[%clk 0:02:59]} 2. d4 {[%clk 0:03:01]}  d5 {[%clk 0:02:59]} 3. exd5 {[%clk 0:03:02]}  exd5 {[%clk 0:02:59]} 4. c4 {[%clk 0:03:02]}  Nf6 {[%clk 0:02:58]} 5. cxd5 {[%clk 0:03:03]}  Nxd5 {[%clk 0:02:57]} 6. Nc3 {[%clk 0:03:04]}  c6 {[%clk 0:02:57]} 7. Nf3 {[%clk 0:03:04]}  Be7 {[%clk 0:02:56]} 8. Bc4 {[%clk 0:03:04]}  Be6 {[%clk 0:02:56]} 9. O-O {[%clk 0:03:05]}  Nxc3 {[%clk 0:02:56]} 10. Qb3 {[%clk 0:03:02]}  Bxc4 {[%clk 0:02:54]} 11. Qxb7 {[%clk 0:03:03]}  Ne2+ {[%clk 0:02:45]} 12. Kh1 {[%clk 0:03:03]}  Nd7 {[%clk 0:02:45]} 13. Qxc6 {[%clk 0:03:03]}  Rc8 {[%clk 0:02:44]} 14. Qe4 {[%clk 0:03:02]}  Nf6 {[%clk 0:02:40]} 15. Qe3 {[%clk 0:03:00]}  Nd5 {[%clk 0:02:36]} 16. Qe5 {[%clk 0:02:57]}  O-O {[%clk 0:02:29]} 17. Qh5 {[%clk 0:02:57]}  Nef4 {[%clk 0:02:22]} 18. Qg4 {[%clk 0:02:55]}  Bxf1 {[%clk 0:02:19]} 19. Bxf4 {[%clk 0:02:54]}  Nxf4 {[%clk 0:02:18]} 20. Qxf4 {[%clk 0:02:55]}  Be2 {[%clk 0:02:14]} 0-1


[Site "https://www.chess.com"]

[Event "Titled Tuesday Blitz March 07 Late 2023"]
[White "Winkels, Marcel"]
[Black "Manu_ChessExcelsior"]
[WhiteFideId "1003887"]
[WhiteElo "1900"]
[BlackElo "1979"]
[Result "0-1"]
[Round "09"]
[TimeControl "180+2"]
[Date "2023.03.07"]
[WhiteClock "0:00:07"]
[BlackClock "0:00:06"]

1. d4 {[%clk 0:03:00]}  d5 {[%clk 0:02:59]} 2. Bf4 {[%clk 0:02:58]}  c5 {[%clk 0:02:49]} 3. e4 {[%clk 0:02:52]}  dxe4 {[%clk 0:02:41]} 4. d5 {[%clk 0:02:52]}  Nf6 {[%clk 0:02:33]} 5. Nc3 {[%clk 0:02:51]}  e6 {[%clk 0:02:16]} 6. d6 {[%clk 0:02:49]}  Nc6 {[%clk 0:02:08]} 7. Nb5 {[%clk 0:02:43]}  Nd5 {[%clk 0:01:56]} 8. Bg3 {[%clk 0:02:39]}  a6 {[%clk 0:01:53]} 9. Nc7+ {[%clk 0:02:33]}  Nxc7 {[%clk 0:01:53]} 10. dxc7 {[%clk 0:02:33]}  Qxd1+ {[%clk 0:01:47]} 11. Rxd1 {[%clk 0:02:32]}  Be7 {[%clk 0:01:47]} 12. f3 {[%clk 0:02:24]}  Nd4 {[%clk 0:01:24]} 13. c3 {[%clk 0:02:22]}  Nf5 {[%clk 0:01:11]} 14. Bf4 {[%clk 0:02:00]}  e3 {[%clk 0:00:50]} 15. Bd3 {[%clk 0:01:57]}  O-O {[%clk 0:00:46]} 16. Bxf5 {[%clk 0:01:54]}  exf5 {[%clk 0:00:47]} 17. Bxe3 {[%clk 0:01:54]}  Be6 {[%clk 0:00:38]} 18. Ne2 {[%clk 0:01:47]}  g5 {[%clk 0:00:35]} 19. b3 {[%clk 0:01:45]}  Rac8 {[%clk 0:00:34]} 20. h4 {[%clk 0:01:37]}  f6 {[%clk 0:00:22]} 21. hxg5 {[%clk 0:01:31]}  fxg5 {[%clk 0:00:22]} 22. Rh5 {[%clk 0:01:32]}  f4 {[%clk 0:00:23]} 23. Bf2 {[%clk 0:01:22]}  Rxc7 {[%clk 0:00:21]} 24. g3 {[%clk 0:01:12]}  Bf7 {[%clk 0:00:20]} 25. Rh6 {[%clk 0:01:09]}  Bg6 {[%clk 0:00:19]} 26. gxf4 {[%clk 0:01:04]}  gxf4 {[%clk 0:00:20]} 27. Kf1 {[%clk 0:00:48]}  b6 {[%clk 0:00:19]} 28. Kg2 {[%clk 0:00:40]}  Bf6 {[%clk 0:00:19]} 29. Bh4 {[%clk 0:00:35]}  Bg7 {[%clk 0:00:17]} 30. Bg5 {[%clk 0:00:34]}  Bxh6 {[%clk 0:00:17]} 31. Bxh6 {[%clk 0:00:35]}  Re8 {[%clk 0:00:16]} 32. Nxf4 {[%clk 0:00:34]}  Rf7 {[%clk 0:00:16]} 33. Rd6 {[%clk 0:00:30]}  Rb8 {[%clk 0:00:10]} 34. Nxg6 {[%clk 0:00:28]}  hxg6 {[%clk 0:00:10]} 35. Rxg6+ {[%clk 0:00:29]}  Kh7 {[%clk 0:00:11]} 36. Rc6 {[%clk 0:00:28]}  a5 {[%clk 0:00:09]} 37. f4 {[%clk 0:00:26]}  Rfb7 {[%clk 0:00:08]} 38. Bg5 {[%clk 0:00:25]}  Re8 {[%clk 0:00:06]} 39. Rh6+ {[%clk 0:00:25]}  Kg7 {[%clk 0:00:06]} 40. Rc6 {[%clk 0:00:25]}  Re2+ {[%clk 0:00:06]} 41. Kf3 {[%clk 0:00:25]}  Rxa2 {[%clk 0:00:07]} 42. Ke4 {[%clk 0:00:25]}  Rb2 {[%clk 0:00:07]} 43. Kf5 {[%clk 0:00:19]}  Rxb3 {[%clk 0:00:07]} 44. Rg6+ {[%clk 0:00:19]}  Kf7 {[%clk 0:00:07]} 45. Rf6+ {[%clk 0:00:19]}  Ke8 {[%clk 0:00:08]} 46. Re6+ {[%clk 0:00:19]}  Kf8 {[%clk 0:00:07]} 47. Rf6+ {[%clk 0:00:19]}  Rf7 {[%clk 0:00:07]} 48. Ke6 {[%clk 0:00:18]}  Rxf6+ {[%clk 0:00:07]} 49. Bxf6 {[%clk 0:00:18]}  a4 {[%clk 0:00:08]} 50. c4 {[%clk 0:00:18]}  a3 {[%clk 0:00:08]} 51. Kd6 {[%clk 0:00:17]}  a2 {[%clk 0:00:07]} 52. Be5 {[%clk 0:00:16]}  Rb1 {[%clk 0:00:07]} 53. Kc6 {[%clk 0:00:15]}  Kf7 {[%clk 0:00:07]} 54. f5 {[%clk 0:00:13]}  Rb4 {[%clk 0:00:07]} 55. Kd5 {[%clk 0:00:11]}  Rb1 {[%clk 0:00:04]} 56. Kc6 {[%clk 0:00:11]}  Re1 {[%clk 0:00:04]} 57. Bh8 {[%clk 0:00:10]}  a1=Q {[%clk 0:00:02]} 58. Bxa1 {[%clk 0:00:09]}  Rxa1 {[%clk 0:00:03]} 59. Kxb6 {[%clk 0:00:09]}  Kf6 {[%clk 0:00:03]} 60. Kxc5 {[%clk 0:00:09]}  Kxf5 {[%clk 0:00:03]} 61. Kc6 {[%clk 0:00:10]}  Ke6 {[%clk 0:00:03]} 62. c5 {[%clk 0:00:10]}  Rb1 {[%clk 0:00:03]} 63. Kc7 {[%clk 0:00:10]}  Kd5 {[%clk 0:00:03]} 64. c6 {[%clk 0:00:08]}  Rc1 {[%clk 0:00:03]} 65. Kd7 {[%clk 0:00:08]}  Rxc6 {[%clk 0:00:04]} 66. Ke7 {[%clk 0:00:08]}  Rd6 {[%clk 0:00:04]} 67. Ke8 {[%clk 0:00:06]}  Ke6 {[%clk 0:00:05]} 68. Kf8 {[%clk 0:00:07]}  Rd7 {[%clk 0:00:05]} 69. Kg8 {[%clk 0:00:07]}  Kf6 {[%clk 0:00:05]} 70. Kh8 {[%clk 0:00:07]}  Kg6 {[%clk 0:00:06]} 0-1


[Site "https://www.chess.com"]

[Event "Titled Tuesday Blitz March 07 Late 2023"]
[White "Fedoseev, Vladimir"]
[Black "Firouzja, Alireza"]
[WhiteFideId "24130737"]
[BlackFideId "12573981"]
[WhiteElo "2752"]
[BlackElo "2904"]
[Result "0-1"]
[Round "10"]
[TimeControl "180+2"]
[Date "2023.03.07"]
[WhiteClock "0:00:02"]
[BlackClock "0:00:35"]

1. e4 {[%clk 0:02:55]}  e5 {[%clk 0:02:55]} 2. Nf3 {[%clk 0:02:55]}  Nc6 {[%clk 0:02:56]} 3. Bb5 {[%clk 0:02:56]}  Nf6 {[%clk 0:02:56]} 4. d3 {[%clk 0:02:55]}  Bc5 {[%clk 0:02:56]} 5. Bxc6 {[%clk 0:02:55]}  dxc6 {[%clk 0:02:56]} 6. Nbd2 {[%clk 0:02:55]}  Nd7 {[%clk 0:02:55]} 7. O-O {[%clk 0:02:51]}  O-O {[%clk 0:02:54]} 8. b3 {[%clk 0:02:51]}  f6 {[%clk 0:02:53]} 9. Bb2 {[%clk 0:02:52]}  Re8 {[%clk 0:02:50]} 10. Kh1 {[%clk 0:02:36]}  Nf8 {[%clk 0:02:49]} 11. Ng1 {[%clk 0:02:36]}  Ng6 {[%clk 0:02:39]} 12. Nc4 {[%clk 0:02:31]}  Be6 {[%clk 0:02:37]} 13. Ne3 {[%clk 0:02:27]}  a5 {[%clk 0:02:36]} 14. a4 {[%clk 0:02:23]}  Qd7 {[%clk 0:02:36]} 15. Qd2 {[%clk 0:02:16]}  b6 {[%clk 0:02:34]} 16. Ne2 {[%clk 0:02:16]}  Rad8 {[%clk 0:02:12]} 17. f4 {[%clk 0:02:13]}  exf4 {[%clk 0:02:05]} 18. Nxf4 {[%clk 0:02:13]}  Bxb3 {[%clk 0:01:42]} 19. Nf5 {[%clk 0:01:08]}  Nxf4 {[%clk 0:01:27]} 20. Qxf4 {[%clk 0:01:03]}  Be6 {[%clk 0:01:10]} 21. Nh6+ {[%clk 0:00:28]}  Kh8 {[%clk 0:01:05]} 22. Qg3 {[%clk 0:00:21]}  Bd4 {[%clk 0:00:59]} 23. Bxd4 {[%clk 0:00:16]}  Qxd4 {[%clk 0:01:00]} 24. Ng4 {[%clk 0:00:13]}  Bxg4 {[%clk 0:00:58]} 25. Qxg4 {[%clk 0:00:14]}  c5 {[%clk 0:00:57]} 26. h3 {[%clk 0:00:12]}  c4 {[%clk 0:00:56]} 27. Rad1 {[%clk 0:00:13]}  cxd3 {[%clk 0:00:54]} 28. Rxd3 {[%clk 0:00:09]}  Qxa4 {[%clk 0:00:54]} 29. Rg3 {[%clk 0:00:07]}  Qd7 {[%clk 0:00:51]} 30. Qh4 {[%clk 0:00:06]}  Qe7 {[%clk 0:00:46]} 31. Rg4 {[%clk 0:00:05]}  a4 {[%clk 0:00:39]} 32. Rf5 {[%clk 0:00:04]}  a3 {[%clk 0:00:38]} 33. Rh5 {[%clk 0:00:04]}  g5 {[%clk 0:00:38]} 34. Qf2 {[%clk 0:00:02]}  Rd1+ {[%clk 0:00:35]} 35. Kh2 {[%clk 0:00:02]}  a2 {[%clk 0:00:35]} 0-1


[Site "https://www.chess.com"]

[Event "Titled Tuesday Blitz March 07 Late 2023"]
[White "Vachier-Lagrave, Maxime"]
[Black "Nakamura, Hikaru"]
[WhiteFideId "623539"]
[BlackFideId "2016192"]
[WhiteElo "2740"]
[BlackElo "2879"]
[Result "1/2-1/2"]
[Round "10"]
[TimeControl "180+2"]
[Date "2023.03.07"]
[WhiteClock "0:00:07"]
[BlackClock "0:00:09"]

1. e4 {[%clk 0:03:00]}  e5 {[%clk 0:02:57]} 2. Nf3 {[%clk 0:03:00]}  Nc6 {[%clk 0:02:57]} 3. Bb5 {[%clk 0:02:59]}  a6 {[%clk 0:02:57]} 4. Ba4 {[%clk 0:02:59]}  d6 {[%clk 0:02:58]} 5. O-O {[%clk 0:02:56]}  Bd7 {[%clk 0:02:58]} 6. c3 {[%clk 0:02:56]}  g6 {[%clk 0:02:58]} 7. d4 {[%clk 0:02:55]}  Bg7 {[%clk 0:02:58]} 8. Re1 {[%clk 0:02:55]}  Nge7 {[%clk 0:02:54]} 9. Be3 {[%clk 0:02:42]}  b5 {[%clk 0:02:49]} 10. Bb3 {[%clk 0:02:36]}  exd4 {[%clk 0:02:40]} 11. cxd4 {[%clk 0:02:34]}  Na5 {[%clk 0:02:41]} 12. Qd2 {[%clk 0:02:21]}  Nxb3 {[%clk 0:02:38]} 13. axb3 {[%clk 0:02:22]}  Bg4 {[%clk 0:02:32]} 14. Bh6 {[%clk 0:02:17]}  Bxh6 {[%clk 0:02:26]} 15. Qxh6 {[%clk 0:02:18]}  Bxf3 {[%clk 0:02:27]} 16. gxf3 {[%clk 0:02:18]}  Ng8 {[%clk 0:02:25]} 17. Qg7 {[%clk 0:01:48]}  Qf6 {[%clk 0:02:22]} 18. Qxf6 {[%clk 0:01:48]}  Nxf6 {[%clk 0:02:23]} 19. Nc3 {[%clk 0:01:47]}  Kd7 {[%clk 0:02:22]} 20. b4 {[%clk 0:01:48]}  Rhe8 {[%clk 0:02:11]} 21. Ra3 {[%clk 0:01:43]}  Kc6 {[%clk 0:02:11]} 22. Rc1 {[%clk 0:01:33]}  Kb7 {[%clk 0:02:10]} 23. Nd1 {[%clk 0:01:21]}  Nd7 {[%clk 0:01:53]} 24. Rac3 {[%clk 0:01:20]}  Rac8 {[%clk 0:01:52]} 25. Ne3 {[%clk 0:01:21]}  c6 {[%clk 0:01:47]} 26. Kf1 {[%clk 0:01:13]}  Nb6 {[%clk 0:01:46]} 27. b3 {[%clk 0:01:05]}  Re7 {[%clk 0:01:32]} 28. R3c2 {[%clk 0:01:05]}  Ree8 {[%clk 0:01:27]} 29. Ke2 {[%clk 0:01:04]}  f5 {[%clk 0:01:25]} 30. Kd3 {[%clk 0:01:05]}  fxe4+ {[%clk 0:01:21]} 31. fxe4 {[%clk 0:01:05]}  Rf8 {[%clk 0:01:22]} 32. Ke2 {[%clk 0:00:58]}  Rf4 {[%clk 0:01:06]} 33. f3 {[%clk 0:00:58]}  d5 {[%clk 0:01:07]} 34. exd5 {[%clk 0:00:57]}  cxd5 {[%clk 0:01:03]} 35. Rxc8 {[%clk 0:00:56]}  Nxc8 {[%clk 0:01:04]} 36. Rc7+ {[%clk 0:00:55]}  Kxc7 {[%clk 0:00:56]} 37. Nxd5+ {[%clk 0:00:55]}  Kd6 {[%clk 0:00:57]} 38. Nxf4 {[%clk 0:00:55]}  Ne7 {[%clk 0:00:57]} 39. Kd3 {[%clk 0:00:38]}  g5 {[%clk 0:00:50]} 40. Ne2 {[%clk 0:00:38]}  Nd5 {[%clk 0:00:49]} 41. Ke4 {[%clk 0:00:36]}  Nxb4 {[%clk 0:00:49]} 42. Kf5 {[%clk 0:00:36]}  Nd5 {[%clk 0:00:36]} 43. Kxg5 {[%clk 0:00:32]}  a5 {[%clk 0:00:37]} 44. Kh6 {[%clk 0:00:20]}  Ke6 {[%clk 0:00:31]} 45. Kxh7 {[%clk 0:00:17]}  Kf7 {[%clk 0:00:32]} 46. Kh6 {[%clk 0:00:13]}  Kf6 {[%clk 0:00:32]} 47. Kh5 {[%clk 0:00:13]}  Kf5 {[%clk 0:00:30]} 48. Kh4 {[%clk 0:00:09]}  b4 {[%clk 0:00:20]} 49. Kg3 {[%clk 0:00:06]}  a4 {[%clk 0:00:20]} 50. Nc1 {[%clk 0:00:05]}  a3 {[%clk 0:00:20]} 51. Na2 {[%clk 0:00:05]}  Kg5 {[%clk 0:00:17]} 52. f4+ {[%clk 0:00:03]}  Nxf4 {[%clk 0:00:15]} 53. Nxb4 {[%clk 0:00:03]}  Ne2+ {[%clk 0:00:15]} 54. Kf2 {[%clk 0:00:02]}  Nxd4 {[%clk 0:00:16]} 55. Na2 {[%clk 0:00:02]}  Nxb3 {[%clk 0:00:17]} 56. Ke3 {[%clk 0:00:03]}  Kh4 {[%clk 0:00:16]} 57. Kd3 {[%clk 0:00:03]}  Kh3 {[%clk 0:00:16]} 58. Kc3 {[%clk 0:00:04]}  Nc1 {[%clk 0:00:16]} 59. Kb4 {[%clk 0:00:04]}  Nxa2+ {[%clk 0:00:16]} 60. Kxa3 {[%clk 0:00:05]}  Nc3 {[%clk 0:00:17]} 61. Kb3 {[%clk 0:00:06]}  Ne2 {[%clk 0:00:18]} 62. Kb2 {[%clk 0:00:06]}  Ng1 {[%clk 0:00:19]} 63. Kb3 {[%clk 0:00:07]}  Kxh2 {[%clk 0:00:09]} 1/2-1/2


[Site "https://www.chess.com"]